[Event "Early-Titled-Tuesday-Blitz-April-23-2024"]
[Site "Chess.com"]
[Date "2024.04.23"]
[Round "4"]
[White "Kushch_Nikolai"]
[Black "sathvikadiga"]
[Result "0-1"]
[WhiteElo "2415"]
[BlackElo "2618"]
[TimeControl "180+1"]
[EndTime "8:39:12 PDT"]
[Termination "sathvikadiga won by resignation"]

1. Nf3 {[%clk 0:03:00.9]} 1... Nf6 {[%clk 0:03:00]} 2. c4 {[%clk 0:03:00.3]}
2... g6 {[%clk 0:03:00.9]} 3. b4 {[%clk 0:03:00.1]} 3... Bg7 {[%clk 0:03:01.8]}
4. Bb2 {[%clk 0:03:00.3]} 4... O-O {[%clk 0:03:02.7]} 5. d4 {[%clk 0:03:00.6]}
5... d6 {[%clk 0:03:03.2]} 6. e3 {[%clk 0:03:00.7]} 6... a5 {[%clk 0:03:03.9]}
7. b5 {[%clk 0:03:00.1]} 7... c6 {[%clk 0:03:01.9]} 8. bxc6 {[%clk 0:02:59]}
8... Nxc6 {[%clk 0:03:00]} 9. Be2 {[%clk 0:02:58.6]} 9... Ne4 {[%clk 0:02:59.6]}
10. O-O {[%clk 0:02:58.1]} 10... Bf5 {[%clk 0:02:58.8]} 11. Nbd2 {[%clk
0:02:56]} 11... a4 {[%clk 0:02:56.5]} 12. Rb1 {[%clk 0:02:46.1]} 12... Nxd2
{[%clk 0:02:49.2]} 13. Qxd2 {[%clk 0:02:44.5]} 13... Bxb1 {[%clk 0:02:49.5]} 14.
Rxb1 {[%clk 0:02:43.8]} 14... Qa5 {[%clk 0:02:45.6]} 15. Bc3 {[%clk 0:02:43.5]}
15... Qa7 {[%clk 0:02:44.1]} 16. h3 {[%clk 0:02:38.2]} 16... Rfb8 {[%clk
0:02:42.8]} 17. Bd3 {[%clk 0:02:33.1]} 17... e5 {[%clk 0:02:40]} 18. d5 {[%clk
0:02:21.5]} 18... Na5 {[%clk 0:02:21.4]} 19. Bb4 {[%clk 0:02:21.2]} 19... Bf8
{[%clk 0:02:16.9]} 20. e4 {[%clk 0:02:19.7]} 20... b6 {[%clk 0:02:15.8]} 21. Ne1
{[%clk 0:02:10.7]} 21... Nb7 {[%clk 0:02:09.9]} 22. Nc2 {[%clk 0:02:03.5]} 22...
Nc5 {[%clk 0:02:10.2]} 23. Bxc5 {[%clk 0:02:03.4]} 23... bxc5 {[%clk 0:02:08.3]}
24. Na3 {[%clk 0:02:02.2]} 24... Rxb1+ {[%clk 0:02:06.7]} 25. Bxb1 {[%clk
0:02:01.8]} 25... Qa5 {[%clk 0:02:05.8]} 26. Qc1 {[%clk 0:01:49.2]} 26... Qb4
{[%clk 0:01:57.1]} 27. Nb5 {[%clk 0:01:44.1]} 27... a3 {[%clk 0:01:57.1]} 28.
Bd3 {[%clk 0:01:42.1]} 28... Qb2 {[%clk 0:01:55.4]} 29. Qc2 {[%clk 0:01:42.2]}
29... Be7 {[%clk 0:01:30]} 30. Kf1 {[%clk 0:01:41.7]} 30... Qb4 {[%clk
0:01:22.5]} 31. Ke2 {[%clk 0:01:40]} 31... Rf8 {[%clk 0:01:21.7]} 32. Qc1 {[%clk
0:01:28.4]} 32... f5 {[%clk 0:01:12]} 33. exf5 {[%clk 0:01:22]} 33... gxf5
{[%clk 0:01:12.9]} 34. f3 {[%clk 0:01:22.2]} 34... e4 {[%clk 0:00:43.1]} 35.
fxe4 {[%clk 0:01:21.1]} 35... fxe4 {[%clk 0:00:44]} 36. Bxe4 {[%clk 0:01:18.2]}
36... Bh4 {[%clk 0:00:38.3]} 37. Nxd6 {[%clk 0:00:58.6]} 37... Rf2+ {[%clk
0:00:19.2]} 38. Ke3 {[%clk 0:00:57.9]} 38... Bg5+ {[%clk 0:00:15.6]} 39. Kxf2
{[%clk 0:00:56.6]} 39... Bxc1 {[%clk 0:00:16.5]} 0-1

[Event "Early-Titled-Tuesday-Blitz-April-23-2024"]
[Site "Chess.com"]
[Date "2024.04.23"]
[Round "4"]
[White "BashirovKemal"]
[Black "northridgehawk"]
[Result "1-0"]
[WhiteElo "2731"]
[BlackElo "2335"]
[TimeControl "180+1"]
[EndTime "8:39:12 PDT"]
[Termination "BashirovKemal won by resignation"]

1. d4 {[%clk 0:03:00.9]} 1... Nf6 {[%clk 0:02:59.5]} 2. Nf3 {[%clk 0:03:01.4]}
2... g6 {[%clk 0:02:56.5]} 3. Nbd2 {[%clk 0:03:01.7]} 3... d5 {[%clk 0:02:56]}
4. e3 {[%clk 0:03:02.2]} 4... Bg7 {[%clk 0:02:56.1]} 5. b4 {[%clk 0:03:02.8]}
5... O-O {[%clk 0:02:53.4]} 6. Bb2 {[%clk 0:03:02.9]} 6... a5 {[%clk 0:02:52]}
7. b5 {[%clk 0:03:03]} 7... c6 {[%clk 0:02:52.1]} 8. c4 {[%clk 0:03:01.1]} 8...
Nbd7 {[%clk 0:02:51.6]} 9. bxc6 {[%clk 0:02:48.4]} 9... bxc6 {[%clk 0:02:51]}
10. Be2 {[%clk 0:02:48.9]} 10... a4 {[%clk 0:02:50.4]} 11. O-O {[%clk
0:02:46.3]} 11... Ne4 {[%clk 0:02:50.8]} 12. cxd5 {[%clk 0:02:38.2]} 12... cxd5
{[%clk 0:02:50.9]} 13. Nxe4 {[%clk 0:02:38.2]} 13... dxe4 {[%clk 0:02:51.8]} 14.
Nd2 {[%clk 0:02:38.8]} 14... Bb7 {[%clk 0:02:51.3]} 15. Nc4 {[%clk 0:02:34.2]}
15... Bd5 {[%clk 0:02:50.1]} 16. Rc1 {[%clk 0:02:32.7]} 16... Qb8 {[%clk
0:02:46.6]} 17. Ba3 {[%clk 0:02:30.5]} 17... Re8 {[%clk 0:02:45.2]} 18. Nd2
{[%clk 0:02:26.9]} 18... Bxa2 {[%clk 0:02:43.5]} 19. Qc2 {[%clk 0:02:23.4]}
19... Bb3 {[%clk 0:02:41.9]} 20. Qxe4 {[%clk 0:02:22]} 20... Nf6 {[%clk
0:02:38]} 21. Qd3 {[%clk 0:02:14.8]} 21... Rc8 {[%clk 0:02:35.4]} 22. Rb1 {[%clk
0:02:12.7]} 22... Nd5 {[%clk 0:02:30.1]} 23. Nxb3 {[%clk 0:02:03.1]} 23... Rc3
{[%clk 0:02:29.9]} 24. Nc5 {[%clk 0:01:37.7]} 24... Qd8 {[%clk 0:02:16.8]} 25.
Qe4 {[%clk 0:01:03.7]} 25... Nf6 {[%clk 0:02:07.5]} 26. Qb7 {[%clk 0:00:53.9]}
26... Rxa3 {[%clk 0:02:05.7]} 27. Qb2 {[%clk 0:00:47.8]} 27... Rb3 {[%clk
0:01:58.6]} 28. Nxb3 {[%clk 0:00:48]} 28... axb3 {[%clk 0:01:58.9]} 29. Qxb3
{[%clk 0:00:47.2]} 29... Ne4 {[%clk 0:01:58.9]} 30. Qd3 {[%clk 0:00:37.4]} 30...
Ra2 {[%clk 0:01:54.9]} 31. Qxe4 {[%clk 0:00:31.4]} 31... Rxe2 {[%clk 0:01:54.8]}
32. Ra1 {[%clk 0:00:27.1]} 32... Rb2 {[%clk 0:01:51.2]} 33. Ra8 {[%clk
0:00:24.5]} 33... Rb8 {[%clk 0:01:50.9]} 34. Rfa1 {[%clk 0:00:24.8]} 34... Bf8
{[%clk 0:01:49]} 35. Rxb8 {[%clk 0:00:20.3]} 35... Qxb8 {[%clk 0:01:49.9]} 36.
Ra8 {[%clk 0:00:18.9]} 36... Qb4 {[%clk 0:01:50]} 37. g3 {[%clk 0:00:13.9]}
37... Kg7 {[%clk 0:01:48.6]} 38. Qe5+ {[%clk 0:00:11.9]} 38... Kg8 {[%clk
0:01:48.8]} 39. Qb8 {[%clk 0:00:07]} 39... Qxb8 {[%clk 0:01:42.6]} 40. Rxb8
{[%clk 0:00:06.9]} 40... Kg7 {[%clk 0:01:41.4]} 41. Kg2 {[%clk 0:00:07.5]} 41...
f5 {[%clk 0:01:39.3]} 42. Kf3 {[%clk 0:00:07.4]} 42... Kf7 {[%clk 0:01:39.6]}
43. Kf4 {[%clk 0:00:07.7]} 43... Bg7 {[%clk 0:01:38.4]} 44. Rb7 {[%clk
0:00:06.4]} 44... Bf6 {[%clk 0:01:37.8]} 45. d5 {[%clk 0:00:05.3]} 45... Ke8
{[%clk 0:01:36.6]} 46. d6 {[%clk 0:00:04.2]} 46... Kd8 {[%clk 0:01:30.8]} 47.
dxe7+ {[%clk 0:00:04]} 47... Bxe7 {[%clk 0:01:31.7]} 48. Rxe7 {[%clk 0:00:04.6]}
48... Kxe7 {[%clk 0:01:32]} 49. Ke5 {[%clk 0:00:05.5]} 1-0

[Event "Early-Titled-Tuesday-Blitz-April-23-2024"]
[Site "Chess.com"]
[Date "2024.04.23"]
[Round "4"]
[White "Manukyan_Artak"]
[Black "Sofia_Blokhin"]
[Result "1-0"]
[WhiteElo "2465"]
[BlackElo "2241"]
[TimeControl "180+1"]
[EndTime "8:39:12 PDT"]
[Termination "Manukyan_Artak won by resignation"]

1. e4 {[%clk 0:02:48.3]} 1... c5 {[%clk 0:02:59.4]} 2. Nf3 {[%clk 0:02:22.1]}
2... e6 {[%clk 0:02:59.1]} 3. c3 {[%clk 0:02:07.5]} 3... Nf6 {[%clk 0:02:51.8]}
4. e5 {[%clk 0:01:58.6]} 4... Nd5 {[%clk 0:02:51.5]} 5. d4 {[%clk 0:01:59.5]}
5... cxd4 {[%clk 0:02:50.3]} 6. cxd4 {[%clk 0:02:00.4]} 6... d6 {[%clk
0:02:48.3]} 7. Nc3 {[%clk 0:01:50]} 7... Nc6 {[%clk 0:02:46]} 8. Bd3 {[%clk
0:01:48]} 8... Be7 {[%clk 0:02:43]} 9. O-O {[%clk 0:01:39.5]} 9... O-O {[%clk
0:02:42]} 10. Qe2 {[%clk 0:01:38.1]} 10... b6 {[%clk 0:02:33.8]} 11. Qe4 {[%clk
0:01:34.8]} 11... g6 {[%clk 0:02:28.6]} 12. Nxd5 {[%clk 0:01:13.1]} 12... exd5
{[%clk 0:02:27.6]} 13. Qxd5 {[%clk 0:01:14]} 13... Bb7 {[%clk 0:02:27.2]} 14.
Qb3 {[%clk 0:01:07.7]} 14... dxe5 {[%clk 0:02:23.2]} 15. dxe5 {[%clk 0:00:58]}
15... Qc8 {[%clk 0:02:19.9]} 16. Bh6 {[%clk 0:00:53.4]} 16... Rd8 {[%clk
0:02:15.8]} 17. Be4 {[%clk 0:00:49.1]} 17... Qg4 {[%clk 0:02:08.1]} 18. Qe3
{[%clk 0:00:44.3]} 18... Bc5 {[%clk 0:02:02.7]} 19. Qf4 {[%clk 0:00:38.1]} 19...
Qh5 {[%clk 0:01:41]} 20. Rad1 {[%clk 0:00:31.7]} 20... Bd4 {[%clk 0:01:09.7]}
21. Bxc6 {[%clk 0:00:27.9]} 21... Bxc6 {[%clk 0:01:07.7]} 22. Rxd4 {[%clk
0:00:21.8]} 22... Bxf3 {[%clk 0:01:03.4]} 23. Rxd8+ {[%clk 0:00:16.6]} 23...
Rxd8 {[%clk 0:01:03.3]} 24. Qf6 {[%clk 0:00:16.7]} 24... Qxh6 {[%clk 0:01:00.3]}
25. Qxd8+ {[%clk 0:00:15.8]} 25... Kg7 {[%clk 0:01:00.4]} 26. gxf3 {[%clk
0:00:16.2]} 26... Qh3 {[%clk 0:00:56.2]} 27. Qf6+ {[%clk 0:00:16.1]} 27... Kh6
{[%clk 0:00:55.3]} 28. Qf4+ {[%clk 0:00:16.5]} 28... Kg7 {[%clk 0:00:55.4]} 29.
Qg4 {[%clk 0:00:16.3]} 29... Qh6 {[%clk 0:00:54.2]} 30. f4 {[%clk 0:00:16.7]}
30... Kg8 {[%clk 0:00:52.4]} 31. h4 {[%clk 0:00:16.3]} 31... Qf8 {[%clk
0:00:52.5]} 32. Rd1 {[%clk 0:00:15.8]} 32... Kg7 {[%clk 0:00:51.7]} 33. Qg5
{[%clk 0:00:15.8]} 33... h6 {[%clk 0:00:50.6]} 34. Qf6+ {[%clk 0:00:15.8]} 34...
Kh7 {[%clk 0:00:51.2]} 35. Rd7 {[%clk 0:00:15.6]} 35... Kg8 {[%clk 0:00:50.7]}
36. e6 {[%clk 0:00:14.8]} 1-0

[Event "Early-Titled-Tuesday-Blitz-April-23-2024"]
[Site "Chess.com"]
[Date "2024.04.23"]
[Round "4"]
[White "czechbul17"]
[Black "Shiner22"]
[Result "1-0"]
[WhiteElo "2066"]
[BlackElo "2329"]
[TimeControl "180+1"]
[EndTime "8:39:15 PDT"]
[Termination "czechbul17 won by checkmate"]

1. d4 {[%clk 0:03:00.9]} 1... Nf6 {[%clk 0:02:59.7]} 2. c4 {[%clk 0:03:01]} 2...
e6 {[%clk 0:03:00.1]} 3. Nf3 {[%clk 0:03:01.1]} 3... b6 {[%clk 0:03:00]} 4. g3
{[%clk 0:03:01.5]} 4... Bb7 {[%clk 0:03:00.3]} 5. Bg2 {[%clk 0:03:01.9]} 5...
Be7 {[%clk 0:03:00.9]} 6. O-O {[%clk 0:03:02.1]} 6... O-O {[%clk 0:03:01]} 7. d5
{[%clk 0:03:02.4]} 7... exd5 {[%clk 0:02:57.2]} 8. Nh4 {[%clk 0:03:02.5]} 8...
c6 {[%clk 0:02:54.2]} 9. cxd5 {[%clk 0:03:01.3]} 9... Nxd5 {[%clk 0:02:54.3]}
10. Nf5 {[%clk 0:03:02.2]} 10... Nc7 {[%clk 0:02:49.4]} 11. e4 {[%clk
0:02:25.4]} 11... d5 {[%clk 0:02:46.9]} 12. Nc3 {[%clk 0:02:18.9]} 12... Bf6
{[%clk 0:02:31.4]} 13. Bf4 {[%clk 0:02:07.2]} 13... Ne6 {[%clk 0:02:19.5]} 14.
Bd6 {[%clk 0:02:00]} 14... Re8 {[%clk 0:02:14.9]} 15. exd5 {[%clk 0:01:26.6]}
15... g6 {[%clk 0:02:06.5]} 16. Nh6+ {[%clk 0:00:52.3]} 16... Kg7 {[%clk
0:02:05.8]} 17. dxe6 {[%clk 0:00:52.6]} 17... Rxe6 {[%clk 0:01:41.5]} 18. Bf4
{[%clk 0:00:51.5]} 18... Qxd1 {[%clk 0:01:39.7]} 19. Rfxd1 {[%clk 0:00:48.3]}
19... g5 {[%clk 0:01:26.9]} 20. Nf5+ {[%clk 0:00:47.8]} 20... Kg6 {[%clk
0:01:26.7]} 21. Nd6 {[%clk 0:00:45.3]} 21... Ba6 {[%clk 0:01:07.8]} 22. Be3
{[%clk 0:00:41]} 22... Be7 {[%clk 0:01:02.9]} 23. Be4+ {[%clk 0:00:35.1]} 23...
Kf6 {[%clk 0:00:48.1]} 24. Nf5 {[%clk 0:00:36]} 24... Bb4 {[%clk 0:00:46.1]} 25.
Bd4+ {[%clk 0:00:30.5]} 25... Kg6 {[%clk 0:00:43.2]} 26. Ng7+ {[%clk 0:00:28]}
26... Kh6 {[%clk 0:00:41.2]} 27. Nxe6 {[%clk 0:00:26.8]} 27... fxe6 {[%clk
0:00:39.6]} 28. Be5 {[%clk 0:00:26.2]} 28... Bb7 {[%clk 0:00:35.8]} 29. Rd8
{[%clk 0:00:25.3]} 29... Na6 {[%clk 0:00:34.7]} 30. Rd7 {[%clk 0:00:25.2]} 30...
g4 {[%clk 0:00:27.6]} 31. Rxh7+ {[%clk 0:00:23.8]} 31... Kg5 {[%clk 0:00:27.9]}
32. Rg7+ {[%clk 0:00:24]} 32... Kh6 {[%clk 0:00:27.9]} 33. Rxb7 {[%clk
0:00:24.1]} 33... Nc5 {[%clk 0:00:27.7]} 34. Bf4+ {[%clk 0:00:23.5]} 34... Kh5
{[%clk 0:00:27.1]} 35. Rh7# {[%clk 0:00:24.4]} 1-0

[Event "Early-Titled-Tuesday-Blitz-April-23-2024"]
[Site "Chess.com"]
[Date "2024.04.23"]
[Round "4"]
[White "Roosters19"]
[Black "Payyappat"]
[Result "0-1"]
[WhiteElo "2325"]
[BlackElo "2530"]
[TimeControl "180+1"]
[EndTime "8:39:16 PDT"]
[Termination "Payyappat won by resignation"]

1. d4 {[%clk 0:02:57.5]} 1... Nf6 {[%clk 0:02:59.8]} 2. Bg5 {[%clk 0:02:56.9]}
2... c5 {[%clk 0:03:00.7]} 3. d5 {[%clk 0:02:55.7]} 3... e6 {[%clk 0:02:59.8]}
4. c4 {[%clk 0:02:54.9]} 4... exd5 {[%clk 0:02:59.9]} 5. cxd5 {[%clk 0:02:54.9]}
5... d6 {[%clk 0:03:00.2]} 6. Nc3 {[%clk 0:02:54.2]} 6... g6 {[%clk 0:02:57.9]}
7. e4 {[%clk 0:02:47]} 7... Bg7 {[%clk 0:02:57.9]} 8. f4 {[%clk 0:02:46.1]} 8...
O-O {[%clk 0:02:57.1]} 9. Nf3 {[%clk 0:02:44.7]} 9... Qb6 {[%clk 0:02:49.6]} 10.
Rb1 {[%clk 0:02:30.8]} 10... Nh5 {[%clk 0:02:47.9]} 11. Qd2 {[%clk 0:01:40.4]}
11... h6 {[%clk 0:02:40.5]} 12. Bh4 {[%clk 0:01:39.8]} 12... Nxf4 {[%clk
0:02:39.5]} 13. Bg3 {[%clk 0:01:21.7]} 13... Nh5 {[%clk 0:02:37.7]} 14. Bf2
{[%clk 0:01:20.2]} 14... Re8 {[%clk 0:02:32.2]} 15. Bd3 {[%clk 0:01:19.8]} 15...
Bg4 {[%clk 0:02:27]} 16. O-O {[%clk 0:01:16.5]} 16... Nd7 {[%clk 0:02:26.8]} 17.
Be3 {[%clk 0:01:14.1]} 17... Bxf3 {[%clk 0:02:22]} 18. Rxf3 {[%clk 0:01:12.7]}
18... Ne5 {[%clk 0:02:21.5]} 19. Rh3 {[%clk 0:01:07.7]} 19... Nxd3 {[%clk
0:01:47.1]} 20. Qxd3 {[%clk 0:01:07.2]} 20... Bd4 {[%clk 0:01:38.8]} 21. Bxd4
{[%clk 0:01:06]} 21... cxd4 {[%clk 0:01:39.7]} 22. Ne2 {[%clk 0:01:06.1]} 22...
Re5 {[%clk 0:01:27.9]} 23. Rh4 {[%clk 0:00:53.5]} 23... Rae8 {[%clk 0:01:25.9]}
24. b3 {[%clk 0:00:44.1]} 24... f5 {[%clk 0:01:22.9]} 25. Ng3 {[%clk 0:00:20.6]}
25... fxe4 {[%clk 0:01:02.9]} 26. Nxe4 {[%clk 0:00:17.6]} 26... Kg7 {[%clk
0:00:53.2]} 27. Rf1 {[%clk 0:00:16.5]} 27... g5 {[%clk 0:00:52.5]} 28. Rxh5
{[%clk 0:00:16.2]} 28... Rxe4 {[%clk 0:00:52.5]} 29. Qf3 {[%clk 0:00:16]} 29...
d3+ {[%clk 0:00:44.6]} 30. Kh1 {[%clk 0:00:16.1]} 30... Rf4 {[%clk 0:00:44.2]}
31. Qd1 {[%clk 0:00:12.6]} 31... d2 {[%clk 0:00:40.7]} 32. Rg1 {[%clk
0:00:10.2]} 32... Qxg1+ {[%clk 0:00:38.5]} 33. Qxg1 {[%clk 0:00:09.7]} 33... Re1
{[%clk 0:00:39.3]} 0-1

[Event "Early-Titled-Tuesday-Blitz-April-23-2024"]
[Site "Chess.com"]
[Date "2024.04.23"]
[Round "4"]
[White "GalaxyRoman"]
[Black "Maxfan2008"]
[Result "0-1"]
[WhiteElo "2782"]
[BlackElo "2598"]
[TimeControl "180+1"]
[EndTime "8:39:21 PDT"]
[Termination "Maxfan2008 won on time"]

1. e4 {[%clk 0:03:00.9]} 1... c5 {[%clk 0:02:59.6]} 2. Nc3 {[%clk 0:02:59.2]}
2... e6 {[%clk 0:02:53.6]} 3. f4 {[%clk 0:02:58.9]} 3... Nc6 {[%clk 0:02:51.2]}
4. Nf3 {[%clk 0:02:59]} 4... d5 {[%clk 0:02:51]} 5. Bb5 {[%clk 0:02:59.3]} 5...
Ne7 {[%clk 0:02:47.2]} 6. O-O {[%clk 0:02:57.7]} 6... d4 {[%clk 0:02:43.6]} 7.
Nb1 {[%clk 0:02:54.2]} 7... a6 {[%clk 0:02:44]} 8. Bxc6+ {[%clk 0:02:54]} 8...
Nxc6 {[%clk 0:02:44.2]} 9. d3 {[%clk 0:02:54.9]} 9... Be7 {[%clk 0:02:44]} 10.
a4 {[%clk 0:02:53.8]} 10... O-O {[%clk 0:02:42.4]} 11. Nbd2 {[%clk 0:02:53.3]}
11... Bd7 {[%clk 0:02:40.9]} 12. Nc4 {[%clk 0:02:51]} 12... b5 {[%clk
0:02:39.2]} 13. axb5 {[%clk 0:02:51.1]} 13... axb5 {[%clk 0:02:40.1]} 14. Rxa8
{[%clk 0:02:51.5]} 14... Qxa8 {[%clk 0:02:41]} 15. Nb6 {[%clk 0:02:52.1]} 15...
Qb7 {[%clk 0:02:39.7]} 16. Nxd7 {[%clk 0:02:52.6]} 16... Qxd7 {[%clk 0:02:40.6]}
17. Qe1 {[%clk 0:02:50.7]} 17... Ra8 {[%clk 0:02:38.5]} 18. Qg3 {[%clk
0:02:47.1]} 18... c4 {[%clk 0:02:35.4]} 19. f5 {[%clk 0:02:25.4]} 19... exf5
{[%clk 0:02:33.4]} 20. exf5 {[%clk 0:02:26.3]} 20... f6 {[%clk 0:02:31.6]} 21.
Nd2 {[%clk 0:01:48.5]} 21... c3 {[%clk 0:02:19.9]} 22. Ne4 {[%clk 0:01:45.6]}
22... Kh8 {[%clk 0:02:05.8]} 23. bxc3 {[%clk 0:01:39.9]} 23... dxc3 {[%clk
0:02:03.1]} 24. Be3 {[%clk 0:01:40]} 24... b4 {[%clk 0:02:00.8]} 25. h4 {[%clk
0:01:38.9]} 25... b3 {[%clk 0:01:58.4]} 26. cxb3 {[%clk 0:01:34]} 26... Qxd3
{[%clk 0:01:57.2]} 27. Qf4 {[%clk 0:00:57.8]} 27... c2 {[%clk 0:01:53.5]} 28.
Nf2 {[%clk 0:00:54.7]} 28... Qxb3 {[%clk 0:01:50.8]} 29. Qe4 {[%clk 0:00:47.5]}
29... Rc8 {[%clk 0:01:50.4]} 30. Rc1 {[%clk 0:00:46.3]} 30... Ne5 {[%clk
0:01:47.9]} 31. Bd4 {[%clk 0:00:41.5]} 31... Ba3 {[%clk 0:01:44.5]} 32. Rxc2
{[%clk 0:00:14.4]} 32... Qxc2 {[%clk 0:01:43.5]} 33. Qb7 {[%clk 0:00:14.2]}
33... Qc1+ {[%clk 0:01:35.4]} 34. Kh2 {[%clk 0:00:14.6]} 34... Bd6 {[%clk
0:01:35.8]} 35. Kh3 {[%clk 0:00:05.9]} 35... h5 {[%clk 0:01:35.7]} 36. Ne4
{[%clk 0:00:02.7]} 36... Ng4 {[%clk 0:01:33.8]} 37. Nxd6 {[%clk 0:00:01.8]}
37... Qh1+ {[%clk 0:01:33.3]} 38. Kg3 {[%clk 0:00:02.4]} 38... Qe1+ {[%clk
0:01:31]} 39. Kh3 {[%clk 0:00:01.6]} 39... Nf2+ {[%clk 0:01:23.5]} 40. Bxf2
{[%clk 0:00:01.5]} 40... Rc3+ {[%clk 0:01:21.6]} 41. Kh2 {[%clk 0:00:01.9]}
41... Qxf2 {[%clk 0:01:20.9]} 42. Qa8+ {[%clk 0:00:02]} 42... Kh7 {[%clk
0:01:20.6]} 43. Qe4 {[%clk 0:00:02.9]} 43... Qg3+ {[%clk 0:01:18.4]} 44. Kg1
{[%clk 0:00:01.7]} 44... Rc1+ {[%clk 0:01:19.3]} 0-1

[Event "Early-Titled-Tuesday-Blitz-April-23-2024"]
[Site "Chess.com"]
[Date "2024.04.23"]
[Round "4"]
[White "RodTwinkz"]
[Black "LuisFSiles"]
[Result "1-0"]
[WhiteElo "2685"]
[BlackElo "2461"]
[TimeControl "180+1"]
[EndTime "8:39:21 PDT"]
[Termination "RodTwinkz won on time"]

1. e4 {[%clk 0:02:59.8]} 1... c5 {[%clk 0:02:59.2]} 2. Nc3 {[%clk 0:02:59.6]}
2... Nc6 {[%clk 0:02:59.1]} 3. f4 {[%clk 0:02:58.6]} 3... g6 {[%clk 0:02:58.4]}
4. Nf3 {[%clk 0:02:58.6]} 4... Bg7 {[%clk 0:02:58.4]} 5. Bc4 {[%clk 0:02:58.5]}
5... e6 {[%clk 0:02:57.6]} 6. e5 {[%clk 0:02:58.6]} 6... d5 {[%clk 0:02:30.3]}
7. Bb5 {[%clk 0:02:50.4]} 7... Ne7 {[%clk 0:02:23.7]} 8. O-O {[%clk 0:02:49.1]}
8... O-O {[%clk 0:02:23.3]} 9. Be2 {[%clk 0:02:41.4]} 9... a6 {[%clk 0:02:20.5]}
10. a4 {[%clk 0:02:38.2]} 10... f6 {[%clk 0:02:15]} 11. exf6 {[%clk 0:02:35.3]}
11... Bxf6 {[%clk 0:02:15.9]} 12. d3 {[%clk 0:02:35.2]} 12... e5 {[%clk
0:02:04.3]} 13. fxe5 {[%clk 0:02:34.2]} 13... Nxe5 {[%clk 0:02:04.5]} 14. Bh6
{[%clk 0:02:22.5]} 14... Nxf3+ {[%clk 0:02:04.2]} 15. Bxf3 {[%clk 0:02:19]}
15... Bg7 {[%clk 0:02:04.5]} 16. Bxg7 {[%clk 0:02:18]} 16... Kxg7 {[%clk
0:02:05.4]} 17. Qe2 {[%clk 0:02:18.1]} 17... Qd6 {[%clk 0:01:10.5]} 18. Rae1
{[%clk 0:02:12.6]} 18... Rf7 {[%clk 0:01:08.6]} 19. Qe5+ {[%clk 0:01:59.1]}
19... Qxe5 {[%clk 0:01:07.8]} 20. Rxe5 {[%clk 0:02:00]} 20... Bd7 {[%clk
0:00:45.6]} 21. Bxd5 {[%clk 0:01:36.9]} 21... Rxf1+ {[%clk 0:00:36.5]} 22. Kxf1
{[%clk 0:01:37.8]} 22... Nxd5 {[%clk 0:00:25.3]} 23. Rxd5 {[%clk 0:01:34]} 23...
Rf8+ {[%clk 0:00:26.2]} 24. Kg1 {[%clk 0:01:32.6]} 24... Bc6 {[%clk 0:00:18.7]}
25. Rxc5 {[%clk 0:01:32.2]} 25... Re8 {[%clk 0:00:19.1]} 26. b4 {[%clk
0:01:24.7]} 26... Re1+ {[%clk 0:00:15.5]} 27. Kf2 {[%clk 0:01:24.7]} 27... Rc1
{[%clk 0:00:16.2]} 28. Ne2 {[%clk 0:01:14.2]} 28... Rd1 {[%clk 0:00:12.1]} 29.
b5 {[%clk 0:01:12.2]} 29... axb5 {[%clk 0:00:10]} 30. axb5 {[%clk 0:01:13.1]}
30... Be8 {[%clk 0:00:10.1]} 31. Rc7+ {[%clk 0:01:10]} 31... Kf6 {[%clk
0:00:09.9]} 32. Rxb7 {[%clk 0:01:10.3]} 32... Rd2 {[%clk 0:00:10.5]} 33. Rc7
{[%clk 0:00:57.8]} 33... Rd1 {[%clk 0:00:03.4]} 34. b6 {[%clk 0:00:55.8]} 34...
Rb1 {[%clk 0:00:03.4]} 35. b7 {[%clk 0:00:55.8]} 35... g5 {[%clk 0:00:01.8]} 36.
Rc8 {[%clk 0:00:52.2]} 1-0

[Event "Early-Titled-Tuesday-Blitz-April-23-2024"]
[Site "Chess.com"]
[Date "2024.04.23"]
[Round "4"]
[White "Prizant_academy"]
[Black "Aryan_Tamadon"]
[Result "1-0"]
[WhiteElo "2934"]
[BlackElo "2629"]
[TimeControl "180+1"]
[EndTime "8:39:23 PDT"]
[Termination "Prizant_academy won by checkmate"]

1. d4 {[%clk 0:03:00.9]} 1... Nf6 {[%clk 0:02:59.9]} 2. c4 {[%clk 0:03:00.4]}
2... d6 {[%clk 0:03:00.3]} 3. Nf3 {[%clk 0:03:00]} 3... g6 {[%clk 0:03:00.9]} 4.
Nc3 {[%clk 0:02:59.1]} 4... Bg7 {[%clk 0:03:01.6]} 5. e4 {[%clk 0:02:59.8]} 5...
O-O {[%clk 0:03:00.4]} 6. Be2 {[%clk 0:03:00.1]} 6... Nbd7 {[%clk 0:02:59.1]} 7.
O-O {[%clk 0:03:00.2]} 7... e5 {[%clk 0:02:59.8]} 8. Qc2 {[%clk 0:03:00.1]} 8...
exd4 {[%clk 0:02:59.2]} 9. Nxd4 {[%clk 0:02:59.9]} 9... Re8 {[%clk 0:02:59.3]}
10. Rd1 {[%clk 0:03:00]} 10... Nc5 {[%clk 0:02:58.9]} 11. f3 {[%clk 0:03:00.2]}
11... Bd7 {[%clk 0:02:38.9]} 12. Bg5 {[%clk 0:02:53.8]} 12... Qc8 {[%clk
0:02:21.5]} 13. b4 {[%clk 0:02:41.2]} 13... Ne6 {[%clk 0:02:21.3]} 14. Be3
{[%clk 0:02:41.7]} 14... a5 {[%clk 0:01:58.8]} 15. a3 {[%clk 0:02:37.5]} 15...
axb4 {[%clk 0:01:58.6]} 16. axb4 {[%clk 0:02:38.4]} 16... Rxa1 {[%clk
0:01:59.5]} 17. Rxa1 {[%clk 0:02:38.1]} 17... Nxe4 {[%clk 0:00:55.7]} 18. Nxe6
{[%clk 0:01:46.6]} 18... Nxc3 {[%clk 0:00:55.1]} 19. Nxg7 {[%clk 0:01:45.9]}
19... Rxe3 {[%clk 0:00:55.8]} 20. Bd3 {[%clk 0:01:45.2]} 20... Kxg7 {[%clk
0:00:35.1]} 21. Qxc3+ {[%clk 0:01:44.8]} 21... Kg8 {[%clk 0:00:35.8]} 22. Qd4
{[%clk 0:01:31.3]} 22... Qe8 {[%clk 0:00:32.4]} 23. Be4 {[%clk 0:01:27.7]} 23...
Re2 {[%clk 0:00:17.2]} 24. Kf1 {[%clk 0:01:24.1]} 24... Rxe4 {[%clk 0:00:06.5]}
25. Qxe4 {[%clk 0:01:22.8]} 25... Qc8 {[%clk 0:00:07]} 26. Qd4 {[%clk 0:01:03]}
26... h5 {[%clk 0:00:05.6]} 27. h4 {[%clk 0:01:01.5]} 27... Be6 {[%clk
0:00:06.1]} 28. c5 {[%clk 0:00:58.6]} 28... dxc5 {[%clk 0:00:05.4]} 29. bxc5
{[%clk 0:00:59.5]} 29... Kh7 {[%clk 0:00:05.8]} 30. Kf2 {[%clk 0:00:57.8]} 30...
Qe8 {[%clk 0:00:06]} 31. Ra7 {[%clk 0:00:56]} 31... Qb5 {[%clk 0:00:06]} 32. Ra8
{[%clk 0:00:54.2]} 32... g5 {[%clk 0:00:01.6]} 33. Rh8+ {[%clk 0:00:51.5]} 33...
Kg6 {[%clk 0:00:01.2]} 34. Rg8+ {[%clk 0:00:52.4]} 34... Kf5 {[%clk 0:00:01.3]}
35. Rxg5# {[%clk 0:00:52.5]} 1-0